fUST/lending_fUST_20260219
["ID","MTS","AMOUNT","RATE_DAILY","PERIOD"]
[405996689,1771513861369,-500.35,0.00037808,2]
[405996690,1771513861379,-686.13,0.00037808,19]
[405996691,1771513861390,-964.82,0.00037808,19]
[405996692,1771513861399,-797.79,0.00037808,19]
[405996693,1771513861408,-159.62,0.00037863,5]
[405996694,1771513861418,-158.22,0.00037863,5]
[405996695,1771513861427,-157.15,0.00037863,5]
[405996696,1771513861437,-1000.0,0.000379,30]
[405996697,1771513861447,-300.0,0.000379,30]
[405996698,1771513861456,-245506.64737788,0.00037999,120]
[405996699,1771513867602,-56803.72777206,0.00037999,120]
[405996700,1771513867614,-497689.62485006,0.00037999,120]
[405996701,1771513867624,-600.0,0.00038,120]
[405996702,1771513867633,-2000.0,0.00038,120]
[405996703,1771513867643,-400.0,0.00038,120]
[405996704,1771513867654,-4045.18168814,0.00038,120]
[405996705,1771513867664,-2647.3775414,0.00038,60]
[405996706,1771513867822,-611.39,0.00038,30]
[405996707,1771513867840,-1030.0,0.00038,7]
[405996708,1771513867850,-739.72,0.00038082,19]
[405996709,1771513867860,-500.0,0.00038082,19]
[405996710,1771513867869,-617.43,0.00038082,19]
[405996711,1771513867879,-1590.52,0.00038082,19]
[405996712,1771513867888,-500.0,0.00038082,19]
[405996713,1771513867897,-500.0,0.00038082,19]
[405996714,1771513867906,-1630.26,0.00038082,7]
[405996715,1771513867916,-24584.14,0.00038082,19]
[405996716,1771513867926,-1543.16,0.00038082,19]
[405996717,1771513867936,-560.56,0.00038082,19]
[405996718,1771513867945,-725.24,0.00038082,19]
[405996719,1771513867955,-2878.51,0.00038082,19]
[405996720,1771513867965,-1043.65,0.00038082,19]
[405996721,1771513867975,-818.31,0.00038082,19]
[405996722,1771513867984,-5008.63,0.00038082,19]
[405996723,1771513867994,-1438.91,0.00038082,19]
[405996724,1771513868004,-906.95,0.00038082,19]
[405996725,1771513868013,-500.35,0.00038082,2]
[405996726,1771513868022,-686.13,0.00038082,19]
[405996727,1771513868031,-964.82,0.00038082,19]
[405996728,1771513868041,-797.79,0.00038082,19]
[405996729,1771513868051,-1509.15,0.000381,120]
[405996730,1771513868061,-1000.0,0.000382,30]
[405996731,1771513868070,-500.0,0.000382,30]
[405996732,1771513868080,-22653.62686549,0.0003822,30]
[405996733,1771513869886,-500.0,0.00011957,2]
[405996734,1771513869897,-500.0,0.00011957,2]
[405996735,1771513869906,-500.0,0.00011957,2]
[405996736,1771513869915,-500.0,0.00011957,2]
[405996737,1771513869925,-87.82051655,0.00011957,2]
[405996738,1771513869936,-412.17948345,0.00011957,2]
[405996739,1771513869945,-322.04243821,0.00011957,2]
[405996740,1771513869955,-500.0,0.00011957,2]
[405996741,1771513869966,-271.75510593,0.00013273,2]
[405996742,1771513869975,-1154.28534846,0.00026759,10]
[405996743,1771513869986,-68.71465154,0.00026759,10]
[405996744,1771513869995,-332.37194383,0.00026759,10]
[405996745,1771514161060,-255.0,0.0001116,3]
[405996747,1771514724456,25000.0,9e-05,3]
[405996748,1771514730126,-350.9322727,9e-05,3]
[405996749,1771514773435,10000.0,8e-05,3]
[405996750,1771514805966,3147.4877273,7e-05,2]
[405996751,1771514840224,-606.82017967,8.909e-05,2]
[405996753,1771514946091,-5000.0,8.732e-05,2]
[405996754,1771514946112,-5000.0,8.82e-05,2]
[405996755,1771514946134,-151.0,8.839e-05,3]
[405996756,1771514946155,-300.0,8.908e-05,2]
[405996757,1771514946177,-4393.17982033,8.909e-05,2]
[405996758,1771514946201,-500.0,9.178e-05,2]
[405996759,1771514946225,-369.14158728,9.178e-05,2]
[405996760,1771514946248,-300.0,9.179e-05,2]
[405996761,1771514946271,-300.0,9.179e-05,2]
[405996762,1771514946295,-300.0,9.179e-05,2]
[405996763,1771514946322,-300.0,9.179e-05,2]
[405996764,1771514946345,-300.0,9.179e-05,2]
[405996765,1771514946367,-300.0,9.179e-05,2]
[405996766,1771514946390,-300.0,9.179e-05,2]
[405996767,1771514946414,-300.0,9.179e-05,2]
[405996768,1771514946438,-300.0,9.179e-05,2]
[405996769,1771514946461,-300.0,9.179e-05,2]
[405996770,1771514946483,-300.0,9.179e-05,2]
[405996771,1771514946506,-300.0,9.179e-05,2]
[405996772,1771514946529,-300.0,9.179e-05,2]
[405996773,1771514946552,-300.0,9.179e-05,2]
[405996774,1771514946575,-300.0,9.179e-05,2]
[405996775,1771514946598,-600.0,9.362e-05,2]
[405996776,1771514946618,-705.3106652,9.427e-05,2]
[405996777,1771514946642,-420.0,9.799e-05,2]
[405996778,1771514946661,-191.49126801,0.0001,2]
[405996779,1771514946684,-720.0,0.00010298,2]
[405996780,1771514946706,-1200.0,0.00010401,2]
[405996781,1771514946731,-300.0,0.00010506,2]
[405996782,1771514946752,-300.0,0.00010506,2]
[405996783,1771514946773,-300.0,0.00010506,2]
[405996784,1771514946795,-175.85263835,0.0001056,2]
[405996785,1771514946814,-426.45380717,0.00010618,2]
[405996786,1771514946836,-385.0,0.00010779,2]
[405996787,1771514946857,-10000.0,0.00011123,2]
[405996788,1771514946883,-864.0,0.00011327,2]
[405996789,1771514946905,-1680.0,0.00011441,2]
[405996790,1771514946925,-401.7,0.000115,2]
[405996791,1771514946947,-158.0,0.00011502,2]
[405996792,1771514946970,-300.0,0.00011551,2]
[405996793,1771514946993,-1000.0,0.0001246,2]
[405996794,1771514947012,-960.14931386,0.000125,2]
[405996795,1771514947034,-207.50611326,0.0001256,2]
[405996796,1771514947055,-570.52042807,0.00012584,2]
[405996797,1771514947076,-1920.0,0.00012585,2]
[405996798,1771514947096,-5880.77284425,0.000129,2]
[405996799,1771514947118,-500.0,0.00013273,2]
[405996800,1771514947141,-500.0,0.00013273,2]
[405996801,1771514947163,-556.36360047,0.00013273,2]
[405996802,1771514947183,-317.81319698,0.00013273,2]
[405996803,1771514947203,-451.05264262,0.00013273,2]
[405996804,1771514947225,-500.0,0.00013273,2]
[405996805,1771514947245,-500.0,0.00013273,2]
[405996806,1771514947265,-500.0,0.00013273,2]
[405996807,1771514947285,-500.0,0.00013273,2]
[405996808,1771514947307,-500.0,0.00013547,2]
[405996809,1771514947328,-458.45832785,0.00013698,2]
[405996810,1771514947348,-500.0,0.00013698,2]
[405996811,1771514947370,-583.17580175,0.00013698,2]
[405996812,1771514947390,-500.0,0.00013698,2]
[405996813,1771514947411,-163.39504195,0.00013699,2]
[405996814,1771514947431,-500.0,0.00013699,2]
[405996815,1771514947451,-500.0,0.00013699,2]
[405996816,1771514947471,-500.0,0.00013699,2]
[405996817,1771514947493,-500.0,0.00013699,2]
[405996818,1771514947515,-500.0,0.00013699,2]
[405996819,1771514947537,-500.0,0.00013699,2]
[405996820,1771514947560,-500.0,0.00013699,2]
[405996821,1771514947584,-453.95510045,0.00013699,2]
[405996822,1771514947610,-1000.0,0.00013706,2]
[405996823,1771514947633,-244.0,0.00013706,2]
[405996824,1771514947656,-500.0,0.00013821,2]
[405996825,1771514947678,-625.00143292,0.00013821,2]
[405996826,1771514947700,-1135.96258974,0.00013821,2]
[405996827,1771514947723,-1000.0,0.00013821,2]
[405996828,1771514947744,-1000.0,0.00013821,2]
[405996829,1771514947764,-908.34628525,0.00013821,2]
[405996830,1771514964216,-5000.0,0.00013562,2]
[405996831,1771514964249,-500.0,0.00013699,2]
[405996832,1771514964281,-200.52024934,0.00013721,2]
[405996833,1771514964317,-168.18546332,0.0001376,2]
[405996834,1771514964350,-91.65371475,0.00013821,2]
[405996835,1771514964384,-500.0,0.00014095,2]
[405996836,1771514964419,-374.93006926,0.00014247,2]
[405996837,1771514964450,-1005.07865696,0.00014247,2]
[405996838,1771514964483,-1000.0,0.00014247,2]
[405996839,1771514964515,-1000.0,0.00014247,2]
[405996840,1771514964547,-500.0,0.00014368,2]
[405996841,1771514964578,-1500.0,0.00014368,2]
[405996842,1771514964609,-1500.0,0.00014368,2]
[405996843,1771514964640,-1500.0,0.00014368,2]
[405996844,1771514964678,-300.0,0.0001453,2]
[405996845,1771514964719,-300.0,0.0001453,2]
[405996846,1771514964754,-300.0,0.0001453,2]
[405996847,1771514964793,-300.0,0.0001453,2]
[405996848,1771514964827,-300.0,0.0001453,2]
[405996849,1771514964864,-300.0,0.0001453,2]
[405996850,1771514964903,-300.0,0.0001453,2]
[405996851,1771514964940,-300.0,0.0001453,2]
[405996852,1771514964973,-151.0,0.00014711,4]
[405996853,1771514965006,-389.16745886,0.00014795,2]
[405996854,1771514965039,-1007.50724426,0.00014795,2]
[405996855,1771514965070,-270.12774819,0.000149,2]
[405996856,1771514965101,-2000.0,0.00014916,2]
[405996857,1771514965134,-2091.37533657,0.00014916,2]
[405996858,1771514965165,-2000.0,0.00014916,2]
[405996859,1771514965197,-1003.5543039,0.00015,7]
[405996860,1771514965230,-41979.30294864,0.00015,2]
[405996861,1771514965261,-4605.36878278,0.00015,2]
[405996862,1771514965293,-1378.885381,0.00015,2]
[405996863,1771514965323,-151.70774138,0.00015,2]
[405996864,1771514965354,-345.61342,0.00015068,2]
[405996865,1771514965391,-1000.0,0.00015077,2]
[405996866,1771514965427,-492.0,0.00015077,2]
[405996867,1771514965459,-2500.0,0.00015464,2]
[405996868,1771514965494,-2500.0,0.00015464,2]
[405996869,1771514965529,-5880.77284418,0.00015504,2]
[405996870,1771514965562,-10906.36873105,0.0001555,2]
[405996871,1771514965594,-7150.08099743,0.000156,2]
[405996872,1771514965627,-198.45884672,0.0001576,2]
[405996873,1771514965662,-3000.0,0.00016012,2]
[405996874,1771514965698,-3000.0,0.00016012,2]
[405996875,1771514965729,-156.12449561,0.00016438,2]
[405996876,1771514965760,-370.90690474,0.0001656,2]
[405996877,1771514965792,-3500.0,0.0001656,2]
[405996878,1771514965826,-1000.0,0.00016585,2]
[405996879,1771514965861,-791.0,0.00016585,2]
[405996880,1771514965891,-65214.6844876,0.00016839,2]
[405996881,1771514965920,-63722.23791736,0.0001699,2]
[405996921,1771515032189,-2645.28,0.00013159,2]
[405996922,1771515032201,-277.8528385,0.00013159,2]
[405996940,1771515038331,-2076.8671615,0.00013159,2]
[405996941,1771515038342,-500.0,0.00013273,2]
[405996942,1771515038351,-5000.0,0.00013292,2]
[405996943,1771515038361,-815.64944035,0.00013426,2]
[405996944,1771515038371,-300.0,0.00013694,2]
[405996945,1771515038381,-300.0,0.00013694,2]
[405996946,1771515038392,-300.0,0.00013694,2]
[405996947,1771515038401,-300.0,0.00013694,2]
[405996948,1771515038411,-300.0,0.00013694,2]
[405996949,1771515038420,-300.0,0.00013694,2]
[405996950,1771515038430,-300.0,0.00013694,2]
[405996952,1771515038439,-300.0,0.00013694,2]
[405996954,1771515038449,-300.0,0.00013694,2]
[405996956,1771515038459,-300.0,0.00013694,2]
[405996958,1771515038468,-300.0,0.00013694,2]
[405996960,1771515038477,-300.0,0.00013694,2]
[405996961,1771515038487,-300.0,0.00013694,2]
[405996962,1771515038496,-300.0,0.00013694,2]
[405996963,1771515038506,-300.0,0.00013694,2]
[405996964,1771515038515,-500.0,0.00013699,2]
[405996965,1771515038525,-1000.0,0.00013821,2]
[405996966,1771515038535,-600.0,0.00013967,2]
[405996967,1771515038544,-1000.0,0.00014247,2]
[405996968,1771515038554,-1500.0,0.00014368,2]
[405996969,1771515038564,-1500.0,0.00014795,2]
[405996970,1771515038574,-2000.0,0.00014916,2]
[405996971,1771515038583,-2000.0,0.00015342,2]
[405996972,1771515038593,-720.0,0.00015364,2]
[405996973,1771515038602,-2500.0,0.00015464,2]
[405996974,1771515038611,-1913.61022806,0.0001589,2]
[405996975,1771515038621,-3000.0,0.00016012,2]
[405996976,1771515038631,-3500.0,0.0001656,2]
[405996977,1771515038640,-3785.32165,0.00016794,2]
[405996978,1771515038650,-864.0,0.000169,2]
[405996979,1771515038660,-399.36429965,0.00016989,2]
[405996980,1771515038670,-36277.76208264,0.0001699,2]
[405996981,1771515038681,-440.9515828,0.00016999,2]
[405996982,1771515038690,-194.51238711,0.00016999,2]
[405996983,1771515038703,-778.04954845,0.00016999,2]
[405996984,1771515038712,-1750.61148401,0.00016999,2]
[405996985,1771515038723,-793.71284904,0.00016999,2]
[405996986,1771515038732,-418.39087923,0.00016999,2]
[405996987,1771515038742,-3112.19819379,0.00016999,2]
[405996988,1771515038751,-2090.8043084,0.00017,2]
[405996989,1771515038773,-5089.30599539,0.00017,2]
[405997035,1771515040686,-551.16131769,0.00017,2]
[405997038,1771515040713,-0.73869189,0.00017,2]
[405997151,1771515046213,-105.23658536,0.0001683,2]
[405997153,1771515046225,-471.66538273,0.0001683,2]
[405997156,1771515046727,-38.99247474,0.0001683,2]
[405997157,1771515046740,-250.70269337,0.0001683,2]
[405997158,1771515046751,-3574.33037437,0.0001683,2]
[405997160,1771515119769,-500.0,0.00013699,2]
[405997161,1771515119798,-305.92930896,0.00013699,2]
[405997162,1771515119817,-500.0,0.00014247,2]
[405997163,1771515119828,-305.92930896,0.00014247,2]
[405997164,1771515119843,-115.36526547,0.00014247,2]
[405997165,1771515149066,-318.22367142,0.00013273,2]
[405997168,1771515749306,2569.63,7.001e-05,2]
[405997169,1771516025157,-4518.3051504,0.00010583,2]
[405997170,1771516028091,-481.6948496,0.00010583,2]
[405997171,1771516028112,-151.0,0.00010657,4]
[405997172,1771516028134,-300.0,0.00010689,2]
[405997173,1771516028159,-281.43823481,0.0001069,2]
[405997174,1771516159097,-5000.0,0.00010372,2]
[405997175,1771516159118,-882.5287486,0.00010477,2]
[405997176,1771516159140,-300.0,0.00010582,2]
[405997177,1771516159162,-5000.0,0.00010583,2]
[405997178,1771516159184,-174.79284609,0.00010743,2]
[405997179,1771516159206,-1200.0,0.00010797,2]
[405997180,1771516159231,-279.55500976,0.00010904,2]
[405997181,1771516159254,-500.0,0.00010904,2]
[405997182,1771516159275,-500.0,0.00010904,2]
[405997183,1771516159300,-500.0,0.00010904,2]
[405997184,1771516159321,-500.0,0.00010904,2]
[405997185,1771516159340,-501.09266261,0.00010904,2]
[405997186,1771516159363,-500.0,0.00010904,2]
[405997187,1771516159382,-500.0,0.00010904,2]
[405997188,1771516159404,-500.0,0.00010904,2]
[405997189,1771516159428,-500.0,0.00010904,2]
[405997190,1771516159450,-500.0,0.00010904,2]
[405997191,1771516159470,-500.0,0.00010904,2]
[405997192,1771516159491,-500.0,0.00010904,2]
[405997193,1771516159513,-500.0,0.00010904,2]
[405997194,1771516159536,-500.0,0.00010904,2]
[405997195,1771516159559,-500.0,0.00010904,2]
[405997196,1771516159581,-500.0,0.00010904,2]
[405997197,1771516159604,-500.0,0.00010904,2]
[405997198,1771516159624,-636.25063254,0.00010904,2]
[405997199,1771516159647,-615.88868546,0.00010904,2]
[405997200,1771516159669,-500.0,0.00010904,2]
[405997201,1771516159692,-500.0,0.00010904,2]
[405997202,1771516159714,-500.0,0.00010904,2]
[405997203,1771516159735,-500.0,0.00010904,2]
[405997204,1771516159758,-500.0,0.00010904,2]
[405997205,1771516159783,-500.0,0.00010904,2]
[405997206,1771516159806,-516.00221642,0.00010904,2]
[405997207,1771516159831,-500.0,0.00010904,2]
[405997208,1771516159856,-500.0,0.00010904,2]
[405997209,1771516159880,-500.0,0.00010904,2]
[405997210,1771516159904,-500.0,0.00010904,2]
[405997211,1771516159929,-500.0,0.00010904,2]
[405997212,1771516159952,-500.0,0.00010904,2]
[405997213,1771516159975,-500.0,0.00010904,2]
[405997214,1771516160004,-500.0,0.00010904,2]
[405997215,1771516160026,-500.0,0.00010904,2]
[405997216,1771516160052,-500.0,0.00010904,2]
[405997217,1771516160075,-500.0,0.00010904,2]
[405997218,1771516160095,-500.0,0.00010904,2]
[405997219,1771516160117,-500.0,0.00010904,2]
[405997220,1771516160139,-500.0,0.00010904,2]
[405997221,1771516160160,-500.0,0.00010904,2]
[405997222,1771516160184,-500.0,0.00010904,2]
[405997223,1771516160206,-500.0,0.00010904,2]
[405997224,1771516160343,-500.0,0.00010904,2]
[405997225,1771516160366,-500.0,0.00010904,2]
[405997226,1771516160389,-500.0,0.00010904,2]
[405997227,1771516160413,-500.0,0.00010904,2]
[405997228,1771516160435,-50.68433852,0.00010904,2]
[405997229,1771516169121,-300.11805253,0.00010904,2]
[405997230,1771516173137,-5000.0,0.00010795,2]
[405997231,1771516173173,-149.19760895,0.00010904,2]
[405997232,1771516173208,-500.0,0.00010904,2]
[405997233,1771516173242,-500.0,0.00010904,2]
[405997234,1771516173275,-500.0,0.00010904,2]
[405997235,1771516173309,-500.0,0.00010904,2]
[405997236,1771516173343,-220.21644378,0.00010904,2]
[405997237,1771516173378,-500.0,0.00010904,2]
[405997238,1771516173415,-500.0,0.00010904,2]
[405997239,1771516173450,-500.0,0.00010904,2]
[405997240,1771516173485,-500.0,0.00010904,2]
[405997241,1771516173520,-500.0,0.00010904,2]
[405997242,1771516173554,-500.0,0.00010904,2]
[405997243,1771516173591,-500.0,0.00010904,2]
[405997244,1771516173626,-500.0,0.00010904,2]
[405997245,1771516173660,-500.0,0.00010904,2]
[405997246,1771516173695,-500.0,0.00010904,2]
[405997247,1771516173728,-500.0,0.00010904,2]
[405997248,1771516173762,-500.0,0.00010904,2]
[405997249,1771516173797,-500.0,0.00010904,2]
[405997250,1771516173833,-500.0,0.00010904,2]
[405997251,1771516173867,-355.53011643,0.00010904,2]
[405997252,1771516173900,-500.0,0.00010904,2]
[405997253,1771516173936,-500.0,0.00010904,2]
[405997254,1771516173973,-500.0,0.00010904,2]
[405997255,1771516174008,-500.0,0.00010904,2]
[405997256,1771516174044,-500.0,0.00010904,2]
[405997257,1771516174079,-500.0,0.00010904,2]
[405997258,1771516174114,-500.0,0.00010904,2]
[405997259,1771516174150,-500.0,0.00010904,2]
[405997260,1771516174187,-500.0,0.00010904,2]
[405997261,1771516174222,-500.0,0.00010904,2]
[405997262,1771516174254,-500.0,0.00010904,2]
[405997263,1771516174287,-500.0,0.00010904,2]
[405997264,1771516174323,-500.0,0.00010904,2]
[405997265,1771516174357,-500.0,0.00010904,2]
[405997266,1771516174392,-500.0,0.00010904,2]
[405997267,1771516174426,-500.0,0.00010904,2]
[405997268,1771516174460,-500.0,0.00010904,2]
[405997269,1771516174495,-500.0,0.00010904,2]
[405997270,1771516174529,-500.0,0.00010904,2]
[405997271,1771516174563,-500.0,0.00010904,2]
[405997272,1771516174597,-500.0,0.00010904,2]
[405997273,1771516174630,-500.0,0.00010904,2]
[405997274,1771516174664,-500.0,0.00010904,2]
[405997275,1771516174697,-499.99999999,0.00010904,2]
[405997276,1771516174732,-500.0,0.00010904,2]
[405997277,1771516174766,-500.0,0.00010904,2]
[405997278,1771516174798,-500.0,0.00010904,2]
[405997279,1771516174833,-500.0,0.00010904,2]
[405997280,1771516174867,-501.9615661,0.00010904,2]
[405997281,1771516174901,-500.0,0.00010904,2]
[405997282,1771516174937,-500.0,0.00010904,2]
[405997283,1771516174971,-500.0,0.00010904,2]
[405997284,1771516175007,-500.0,0.00010904,2]
[405997285,1771516175042,-500.0,0.00010904,2]
[405997286,1771516175075,-500.0,0.00010904,2]
[405997287,1771516175106,-500.0,0.00010904,2]
[405997288,1771516175138,-500.0,0.00010904,2]
[405997289,1771516175173,-500.0,0.00010904,2]
[405997290,1771516175206,-500.0,0.00010904,2]
[405997291,1771516175241,-500.0,0.00010904,2]
[405997292,1771516175274,-500.0,0.00010904,2]
[405997293,1771516175306,-500.0,0.00010904,2]
[405997294,1771516175338,-500.0,0.00010904,2]
[405997295,1771516175370,-500.0,0.00010904,2]
[405997296,1771516175404,-500.0,0.00010904,2]
[405997297,1771516175539,-500.0,0.00010904,2]
[405997298,1771516175576,-500.0,0.00010904,2]
[405997299,1771516175610,-500.0,0.00010904,2]
[405997300,1771516175644,-222.8366796,0.00010904,2]
[405997301,1771516175677,-250.0,0.00010904,2]
[405997302,1771516175707,-50000.0,0.00010904,2]
[405997303,1771516175737,-500.0,0.00010905,2]
[405997304,1771516175766,-300.0,0.00010906,2]
[405997305,1771516175796,-300.0,0.00010906,2]
[405997306,1771516175826,-300.0,0.00010906,2]
[405997307,1771516175857,-500.0,0.00011179,2]
[405997308,1771516175887,-257.8221982,0.00011354,2]
[405997309,1771516175918,-500.0,0.00011453,2]
[405997310,1771516175950,-420.0,0.00011633,2]
[405997311,1771516175982,-1680.0,0.00011877,2]
[405997312,1771516176013,-420.0,0.00011986,2]
[405997313,1771516176045,-300.0,0.00011986,2]
[405997314,1771516176077,-420.0,0.00011986,2]
[405997315,1771516176108,-300.0,0.00012002,2]
[405997316,1771516176140,-845.032954,0.00012055,2]
[405997317,1771516176175,-300.0,0.0001224,2]
[405997318,1771516176209,-300.0,0.0001224,2]
[405997319,1771516176242,-300.0,0.0001224,2]
[405997320,1771516176276,-300.0,0.0001224,2]
[405997321,1771516176310,-300.0,0.0001224,2]
[405997322,1771516176344,-300.0,0.0001224,2]
[405997323,1771516176377,-300.0,0.0001224,2]
[405997324,1771516176411,-300.0,0.0001224,2]
[405997325,1771516176445,-300.0,0.0001224,2]
[405997326,1771516176479,-300.0,0.0001224,2]
[405997327,1771516176514,-300.0,0.0001224,2]
[405997328,1771516176548,-300.0,0.0001224,2]
[405997329,1771516176581,-300.0,0.0001224,2]
[405997330,1771516176615,-300.0,0.0001224,2]
[405997331,1771516176649,-300.0,0.0001224,2]
[405997332,1771516176681,-644.66,0.00012329,2]
[405997333,1771516176715,-600.0,0.00012484,2]
[405997334,1771516176746,-206.25555839,0.00012744,2]
[405997335,1771516176776,-587.0,0.00012789,2]
[405997336,1771516176806,-172.16,0.000128,2]
[405997337,1771516176836,-4649.65731813,0.000129,2]
[405997338,1771516176867,-2351.0,0.00013064,2]
[405997339,1771516176898,-218.0,0.00013172,2]
[405997340,1771516176929,-185.0,0.00013172,2]
[405997341,1771516176958,-500.0,0.00013273,2]
[405997342,1771516176988,-500.0,0.00013273,2]
[405997343,1771516177021,-500.0,0.00013273,2]
[405997344,1771516177050,-500.0,0.00013273,2]
[405997345,1771516177080,-500.0,0.00013273,2]
[405997346,1771516177110,-613.00801976,0.00013273,2]
[405997347,1771516177140,-500.0,0.00013698,2]
[405997348,1771516177169,-500.0,0.00013698,2]
[405997349,1771516177199,-500.0,0.00013698,2]
[405997350,1771516177228,-261.74442999,0.00013698,2]
[405997415,1771516232467,-5000.0,0.00010687,2]
[405997417,1771516232477,-570.0,0.00010687,2]
[405997419,1771516232487,-391.0,0.00010794,2]
[405997421,1771516232498,-5000.0,0.00010795,2]
[405997423,1771516232507,-300.0,0.000109,2]
[405997426,1771516232517,-300.0,0.000109,2]
[405997428,1771516232527,-300.0,0.000109,2]
[405997430,1771516232536,-300.0,0.000109,2]
[405997431,1771516232545,-500.0,0.00013273,2]
[405997434,1771516232555,-300.0,0.00013697,2]
[405997436,1771516232565,-238.25557001,0.00013698,2]
[405997438,1771516232575,-517.55708191,0.00013698,2]
[405997440,1771516232584,-500.0,0.00013698,2]
[405997442,1771516232594,-500.0,0.00013698,2]
[405997444,1771516232603,-500.0,0.00013698,2]
[405997446,1771516232614,-500.0,0.00013698,2]
[405997448,1771516232624,-500.0,0.00013698,2]
[405997450,1771516232634,-500.0,0.00013698,2]
[405997452,1771516232644,-512.91206475,0.00013698,2]
[405997454,1771516232654,-500.0,0.00013698,2]
[405997456,1771516232664,-500.0,0.00013698,2]
[405997458,1771516232674,-500.0,0.00013698,2]
[405997460,1771516232684,-500.0,0.00013698,2]
[405997462,1771516232693,-500.0,0.00013698,2]
[405997464,1771516232706,-500.0,0.00013698,2]
[405997466,1771516232716,-500.0,0.00013698,2]
[405997468,1771516232726,-500.0,0.00013698,2]
[405997487,1771516232891,-387.68444032,0.00013698,2]
[405997489,1771516232901,-500.0,0.00013698,2]
[405997491,1771516232909,-500.0,0.00013698,2]
[405997493,1771516232918,-500.0,0.00013698,2]
[405997495,1771516232928,-504.22557757,0.00013698,2]
[405997497,1771516232937,-500.0,0.00013698,2]
[405997499,1771516232946,-505.32011301,0.00013698,2]
[405997501,1771516232959,-500.0,0.00013698,2]
[405997503,1771516232968,-500.0,0.00013698,2]
[405997505,1771516232977,-179.52316267,0.00013698,2]
[405997507,1771516232987,-500.0,0.00013698,2]
[405997509,1771516232996,-151.0,0.00013698,2]
[405997511,1771516233006,-151.0,0.00013698,2]
[405997513,1771516233015,-151.0,0.00013698,2]
[405997515,1771516233029,-151.0,0.00013698,2]
[405997517,1771516233041,-151.0,0.00013698,2]
[405997519,1771516233051,-200.946499,0.00013699,2]
[405997521,1771516233061,-7109.85636963,0.00013699,2]
[405997524,1771516233074,-348.0500075,0.00013699,2]
[405997526,1771516233085,-913.195,0.00013699,2]
[405997597,1771516240856,-2881.50761692,0.00010791,2]
[405997627,1771516248048,-2118.49238308,0.00010791,2]
[405997628,1771516248059,-300.0,0.000109,2]
[405997629,1771516248068,-300.0,0.000109,2]
[405997630,1771516248078,-300.0,0.000109,2]
[405997631,1771516248087,-300.0,0.000109,2]
[405997632,1771516248098,-300.0,0.000109,2]
[405997633,1771516248107,-300.0,0.000109,2]
[405997634,1771516248117,-300.0,0.000109,2]
[405997635,1771516248128,-300.0,0.000109,2]
[405997636,1771516248139,-300.0,0.000109,2]
[405997637,1771516248150,-300.0,0.000109,2]
[405997638,1771516248161,-151.0,0.00013698,2]
[405997639,1771516248171,-151.0,0.00013698,2]
[405997640,1771516248181,-151.0,0.00013698,2]
[405997641,1771516248190,-151.0,0.00013698,2]
[405997642,1771516248199,-151.0,0.00013698,2]
[405997643,1771516248208,-151.0,0.00013698,2]
[405997644,1771516248218,-151.0,0.00013698,2]